fUSD/lending_fUSD_20250219
["ID","MTS","AMOUNT","RATE_DAILY","PERIOD"]
[353613008,1739957546356,-500.0,0.00013698,2]
[353613009,1739957546366,-339.55947154,0.00013779,2]
[353613010,1739957546385,-160.44052846,0.00013779,2]
[353613011,1739957546395,-177.37947167,0.00013779,2]
[353613012,1739957546406,-322.62052833,0.00013779,2]
[353613013,1739957546415,-500.0,0.0001378,2]
[353613014,1739957546425,-500.0,0.0001378,2]
[353613015,1739957546435,-500.0,0.0001378,2]
[353613016,1739957546445,-500.0,0.0001378,2]
[353613017,1739957546455,-896.64,0.0001378,2]
[353613018,1739957546465,-1052.77,0.0001378,2]
[353613019,1739957546475,-500.0,0.0001378,2]
[353613020,1739957546484,-500.0,0.0001378,2]
[353613021,1739957546494,-500.0,0.00013861,2]
[353613022,1739957546505,-500.0,0.00013862,2]
[353613023,1739957546514,-516.04681432,0.00013862,2]
[353613024,1739957546524,-500.0,0.00013862,2]
[353613025,1739957546533,-584.77212575,0.00013862,2]
[353613026,1739957546543,-500.0,0.00013862,2]
[353613027,1739957546552,-500.0,0.00013863,2]
[353613028,1739957546562,-449.05224072,0.00013863,2]
[353613029,1739957546572,-500.0,0.00013863,2]
[353613030,1739957546582,-896.64,0.00013863,2]
[353613031,1739957546592,-1052.77,0.00013863,2]
[353613032,1739957546601,-500.0,0.00013863,2]
[353613033,1739957546611,-500.0,0.00013944,2]
[353613034,1739957546620,-476.92,0.00013944,2]
[353613035,1739957546630,-500.0,0.00013944,2]
[353613036,1739957546639,-500.0,0.00013945,2]
[353613037,1739957546649,-896.64,0.00013945,2]
[353613038,1739957546658,-500.0,0.00013945,2]
[353613039,1739957546668,-1052.77,0.00013945,2]
[353613040,1739957546678,-500.0,0.00013945,2]
[353613041,1739957546687,-500.0,0.00014026,2]
[353613042,1739957546696,-500.0,0.00014026,2]
[353613043,1739957546706,-500.0,0.00014027,2]
[353613044,1739957546716,-267.03,0.00014027,2]
[353613045,1739957546726,-896.64,0.00014027,2]
[353613046,1739957546735,-1052.77,0.00014027,2]
[353613047,1739957546746,-500.0,0.00014109,2]
[353613048,1739957546755,-500.0,0.00014109,2]
[353613049,1739957546765,-896.64,0.00014109,2]
[353613050,1739957546775,-1052.77,0.00014109,2]
[353613051,1739957546786,-500.0,0.00014109,2]
[353613052,1739957546796,-500.0,0.00014191,2]
[353613053,1739957546806,-896.64,0.00014191,2]
[353613054,1739957546822,-1052.77,0.00014191,2]
[353613055,1739957546832,-541.44,0.00014191,2]
[353613056,1739957546845,-500.0,0.00014273,2]
[353613057,1739957546854,-896.64,0.00014273,2]
[353613058,1739957546864,-1052.77,0.00014273,2]
[353613059,1739957546874,-500.0,0.00014355,2]
[353613060,1739957546885,-257.507914,0.00014356,2]
[353613061,1739957546895,-896.64,0.00014356,2]
[353613062,1739957546905,-1052.77,0.00014356,2]
[353613063,1739957546914,-500.0,0.00014437,2]
[353613064,1739957546924,-896.64,0.00014438,2]
[353613065,1739957546934,-500.0,0.0001452,2]
[353613066,1739957546944,-896.64,0.0001452,2]
[353613067,1739957546953,-500.0,0.00014602,2]
[353613068,1739957546963,-896.64,0.00014602,2]
[353613069,1739957546972,-500.0,0.00014684,2]
[353613070,1739957546982,-896.64,0.00014684,2]
[353613071,1739957546991,-247.65916093,0.00014766,2]
[353613072,1739957547001,-150.09646426,0.00014849,2]
[353613073,1739957547013,-500.0,0.00014849,2]
[353613074,1739957547024,-538.22,0.00014849,2]
[353613075,1739957547034,-577.83,0.00014849,2]
[353613076,1739957547224,-571.64,0.00014849,2]
[353613077,1739957547234,-681.91,0.00014849,2]
[353613078,1739957547244,-500.0,0.00014849,2]
[353613079,1739957547254,-1520.67,0.00014849,2]
[353613080,1739957547264,-500.0,0.00014849,2]
[353613081,1739957547274,-500.0,0.00014849,2]
[353613082,1739957547284,-1987.65,0.00014849,2]
[353613083,1739957547294,-576.77,0.00014849,2]
[353613084,1739957547304,-1842.25,0.00014849,2]
[353613085,1739957547314,-506.24,0.00014849,2]
[353613086,1739957547324,-500.0,0.00014849,2]
[353613087,1739957547334,-1152.23,0.00014849,2]
[353613088,1739957547344,-547.06,0.00014849,2]
[353613089,1739957547354,-715.88,0.00014849,2]
[353613090,1739957547365,-1109.67,0.00014849,2]
[353613091,1739957547375,-783.73,0.00014849,2]
[353613092,1739957547386,-4965.72,0.00014849,2]
[353613093,1739957547396,-542.9,0.00014849,2]
[353613094,1739957547407,-1255.58,0.00014849,2]
[353613095,1739957547417,-355.20618858,0.00014849,2]
[353613096,1739957547430,-571.6,0.00014849,2]
[353613097,1739957547440,-595.06,0.00014849,2]
[353613098,1739957547450,-870.4,0.00014849,2]
[353613099,1739957547459,-500.0,0.00014849,2]
[353613100,1739957547469,-1312.22,0.00014849,2]
[353613101,1739957547479,-690.92,0.00014849,2]
[353613102,1739957547489,-1038.88,0.00014849,2]
[353613103,1739957547499,-510.11,0.00014849,2]
[353613104,1739957547508,-1128.72,0.00014849,2]
[353613105,1739957547518,-685.38,0.00014849,2]
[353613106,1739957547528,-1630.13,0.00014849,2]
[353613107,1739957547538,-1105.85,0.00014849,2]
[353613108,1739957547548,-500.0,0.00014849,2]
[353613109,1739957547558,-531.86,0.00014849,2]
[353613110,1739957547569,-595.83,0.00014849,2]
[353613111,1739957547578,-735.93,0.00014849,2]
[353613112,1739957547589,-1130.06,0.00014849,2]
[353613113,1739957547599,-743.49,0.00014849,2]
[353613114,1739957547608,-623.46,0.00014849,2]
[353613115,1739957547618,-1482.15,0.00014849,2]
[353613116,1739957547639,-551.14,0.00014849,2]
[353613117,1739957547649,-500.0,0.00014849,2]
[353613118,1739957547658,-1986.52,0.00014849,2]
[353613119,1739957547668,-500.0,0.00014849,2]
[353613120,1739957547679,-596.19,0.00014849,2]
[353613121,1739957547688,-1429.02,0.00014849,2]
[353613122,1739957547698,-515.56,0.00014849,2]
[353613123,1739957547707,-504.01,0.00014849,2]
[353613124,1739957547717,-1375.73,0.00014849,2]
[353613125,1739957547727,-625.37,0.00014849,2]
[353613126,1739957547736,-751.56,0.00014849,2]
[353613127,1739957547746,-1045.9,0.00014849,2]
[353613128,1739957547755,-500.0,0.00014849,2]
[353613129,1739957547765,-1195.24,0.00014849,2]
[353613130,1739957547775,-783.63,0.00014849,2]
[353613131,1739957547785,-923.97,0.00014849,2]
[353613132,1739957547795,-476.49236588,0.00014849,2]
[353613133,1739957547805,-533.29,0.00014849,2]
[353613134,1739957547814,-561.8,0.00014849,2]
[353613135,1739957547824,-500.0,0.00014849,2]
[353613136,1739957547835,-556.13,0.00014849,2]
[353613137,1739957547845,-871.44,0.00014849,2]
[353613138,1739957547855,-500.0,0.00014849,2]
[353613139,1739957547865,-520.39,0.00014849,2]
[353613140,1739957547875,-500.0,0.00014849,2]
[353613141,1739957547888,-627.31,0.00014849,2]
[353613142,1739957547898,-758.0,0.00014849,2]
[353613143,1739957547907,-1049.1,0.00014849,2]
[353613144,1739957547917,-167.33782911,0.00014873,2]
[353613145,1739957547926,-758.0,0.00014876,2]
[353613146,1739957547935,-8934.16272742,0.000149,3]
[353613147,1739957547944,-758.0,0.00014904,2]
[353613148,1739957547954,-169.3674515,0.0001492,2]
[353613149,1739957547963,-389.1167465,0.0001492,2]
[353613150,1739957547973,-345.1946927,0.0001492,2]
[353613151,1739957547982,-500.0,0.0001493,2]
[353613152,1739957547991,-993.26,0.0001493,2]
[353613153,1739957548001,-1361.76,0.0001493,2]
[353613154,1739957548012,-3328.08,0.0001493,2]
[353613155,1739957548024,-805.91,0.0001493,2]
[353613156,1739957548033,-624.12217,0.0001493,2]
[353613157,1739957548042,-794.73,0.0001493,2]
[353613158,1739957548052,-1648.06,0.0001493,2]
[353613159,1739957548062,-1304.4,0.0001493,2]
[353613160,1739957548071,-2315.06,0.0001493,2]
[353613161,1739957548081,-657.44,0.0001493,2]
[353613162,1739957548090,-569.74,0.0001493,2]
[353613163,1739957548100,-1701.32,0.0001493,2]
[353613164,1739957548109,-797.341175,0.0001493,2]
[353613165,1739957548119,-1111.32,0.0001493,2]
[353613166,1739957548132,-535.92,0.0001493,2]
[353613167,1739957548142,-1614.24,0.0001493,2]
[353613168,1739957548151,-1009.78,0.0001493,2]
[353613169,1739957548159,-827.2,0.0001493,2]
[353613170,1739957548168,-1080.02,0.0001493,2]
[353613171,1739957548178,-1857.62,0.0001493,2]
[353613172,1739957548187,-774.83,0.0001493,2]
[353613173,1739957548196,-1961.46,0.0001493,2]
[353613174,1739957548205,-587.22,0.0001493,2]
[353613175,1739957548215,-1389.95,0.0001493,2]
[353613176,1739957548225,-2439.57,0.0001493,2]
[353613177,1739957548234,-2086.08,0.0001493,2]
[353613178,1739957548243,-1423.63,0.0001493,2]
[353613179,1739957548252,-894.72,0.0001493,2]
[353613180,1739957548261,-981.47,0.0001493,2]
[353613181,1739957548270,-500.0,0.0001493,2]
[353613182,1739957548280,-2456.73,0.0001493,2]
[353613183,1739957548289,-1141.26,0.0001493,2]
[353613184,1739957548299,-853.54,0.0001493,2]
[353613185,1739957548308,-500.0,0.0001493,2]
[353613186,1739957548317,-2040.34,0.0001493,2]
[353613187,1739957548327,-539.54,0.0001493,2]
[353613188,1739957548336,-1547.16,0.0001493,2]
[353613189,1739957548346,-509.20712048,0.0001493,2]
[353613190,1739957548355,-1228.63,0.0001493,2]
[353613191,1739957548365,-1000.57,0.0001493,2]
[353613192,1739957548376,-1614.6,0.0001493,2]
[353613193,1739957548385,-2888.4,0.0001493,2]
[353613194,1739957548394,-3508.55,0.0001493,2]
[353613195,1739957548404,-2167.87,0.0001493,2]
[353613196,1739957548414,-2639.36,0.0001493,2]
[353613197,1739957548423,-2190.71,0.0001493,2]
[353613198,1739957548432,-883.01,0.0001493,2]
[353613199,1739957548441,-515.97,0.0001493,2]
[353613200,1739957548450,-500.0,0.0001493,2]
[353613201,1739957548459,-1967.58,0.0001493,2]
[353613202,1739957548468,-902.44,0.0001493,2]
[353613203,1739957548477,-1719.33,0.0001493,2]
[353613204,1739957548487,-1557.18,0.0001493,2]
[353613205,1739957548496,-2055.15,0.0001493,2]
[353613206,1739957548506,-3073.81,0.0001493,2]
[353613207,1739957548515,-566.77,0.0001493,2]
[353613208,1739957548524,-1651.38,0.0001493,2]
[353613209,1739957548533,-1204.91,0.0001493,2]
[353613210,1739957548542,-826.88,0.0001493,2]
[353613211,1739957548552,-750.63,0.0001493,2]
[353613212,1739957548561,-500.0,0.0001493,2]
[353613213,1739957548570,-2207.52,0.0001493,2]
[353613214,1739957548580,-2277.87,0.0001493,2]
[353613215,1739957548589,-2277.87,0.0001493,2]
[353613216,1739957548599,-2021.43,0.0001493,2]
[353613217,1739957548608,-1770.14,0.0001493,2]
[353613218,1739957548618,-500.0,0.0001493,2]
[353613219,1739957548628,-1516.86,0.0001493,2]
[353613220,1739957548638,-1422.8,0.0001493,2]
[353613221,1739957548647,-763.45,0.0001493,2]
[353613222,1739957548657,-500.0,0.00014931,2]
[353613223,1739957548666,-500.0,0.00014931,2]
[353613224,1739957548675,-565.96,0.00014931,2]
[353613225,1739957548684,-500.0,0.00014931,2]
[353613226,1739957548694,-500.0,0.00014931,2]
[353613227,1739957548703,-628.69,0.00014931,2]
[353613228,1739957548712,-500.0,0.00014931,2]
[353613229,1739957548721,-687.05,0.00014931,2]
[353613231,1739957548730,-500.0,0.00014931,2]
[353613232,1739957548740,-500.0,0.00014931,2]
[353613233,1739957548749,-657.0,0.00014931,2]
[353613234,1739957548759,-727.68,0.00014931,2]
[353613235,1739957548768,-594.44,0.00014931,2]
[353613236,1739957548777,-539.19,0.00014931,2]
[353613237,1739957548787,-432.992927,0.00014931,2]
[353613238,1739957548796,-500.0,0.00014931,2]
[353613239,1739957548805,-656.29,0.00014931,2]
[353613240,1739957548814,-500.0,0.00014931,2]
[353613241,1739957548823,-500.0,0.00014931,2]
[353613242,1739957548832,-500.0,0.00014931,2]
[353613243,1739957548841,-500.0,0.00014931,2]
[353613244,1739957548851,-506.69,0.00014931,2]
[353613245,1739957548861,-500.0,0.00014931,2]
[353613246,1739957548870,-500.07,0.00014931,2]
[353613247,1739957548881,-500.0,0.00014931,2]
[353613248,1739957548891,-2880.46,0.00014931,2]
[353613249,1739957548900,-500.0,0.00014931,2]
[353613250,1739957548909,-500.0,0.00014931,2]
[353613251,1739957548919,-500.0,0.00014931,2]
[353613252,1739957548928,-500.0,0.00014931,2]
[353613253,1739957548937,-500.0,0.00014931,2]
[353613254,1739957548946,-500.0,0.00014931,2]
[353613255,1739957548956,-691.7,0.00014931,2]
[353613256,1739957548965,-500.0,0.00014931,2]
[353613257,1739957548974,-598.12,0.00014931,2]
[353613258,1739957548983,-500.0,0.00014931,2]
[353613259,1739957548993,-629.55,0.00014931,2]
[353613260,1739957549002,-500.0,0.00014931,2]
[353613261,1739957549013,-500.89,0.00014931,2]
[353613262,1739957549026,-500.0,0.00014931,2]
[353613263,1739957549036,-500.0,0.00014931,2]
[353613264,1739957549045,-632.82,0.00014931,2]
[353613266,1739957549056,-657.73,0.00014931,2]
[353613267,1739957549065,-506.71642543,0.00014931,2]
[353613268,1739957549075,-500.0,0.00014931,2]
[353613269,1739957549085,-719.81,0.00014931,2]
[353613270,1739957549096,-500.0,0.00014931,2]
[353613271,1739957549106,-500.0,0.00014931,2]
[353613272,1739957549115,-500.0,0.00014931,2]
[353613273,1739957549125,-500.0,0.00014931,2]
[353613274,1739957549135,-560.79,0.00014931,2]
[353613275,1739957549145,-778.14,0.00014931,2]
[353613276,1739957549154,-647.07,0.00014931,2]
[353613277,1739957549164,-500.0,0.00014931,2]
[353613278,1739957549175,-500.0,0.00014931,2]
[353613279,1739957549185,-500.0,0.00014931,2]
[353613280,1739957549195,-500.0,0.00014931,2]
[353613281,1739957549205,-770.13,0.00014931,2]
[353613282,1739957549217,-500.0,0.00014931,2]
[353613283,1739957549226,-500.0,0.00014931,2]
[353613284,1739957549236,-500.0,0.00014931,2]
[353613285,1739957549245,-680.04,0.00014931,2]
[353613286,1739957549254,-500.0,0.00014931,2]
[353613287,1739957549263,-1015.43,0.00014931,2]
[353613288,1739957549272,-500.0,0.00014931,2]
[353613289,1739957549282,-909.24,0.00014931,2]
[353613290,1739957549291,-1252.15,0.00014931,2]
[353613291,1739957549301,-500.0,0.00014931,2]
[353613292,1739957549310,-604.92,0.00014931,2]
[353613293,1739957549319,-736.01,0.00014931,2]
[353613294,1739957549329,-1283.84,0.00014931,2]
[353613295,1739957549339,-500.0,0.00014931,2]
[353613296,1739957549348,-745.89,0.00014931,2]
[353613297,1739957549358,-1055.67,0.00014931,2]
[353613298,1739957549367,-627.81,0.00014931,2]
[353613299,1739957549376,-500.0,0.00014931,2]
[353613300,1739957549385,-776.57,0.00014931,2]
[353613301,1739957549395,-500.0,0.00014931,2]
[353613302,1739957549404,-733.08,0.00014931,2]
[353613304,1739957549414,-529.59,0.00014931,2]
[353613305,1739957549423,-691.67,0.00014931,2]
[353613306,1739957549432,-823.1,0.00014931,2]
[353613307,1739957549442,-733.25,0.00014931,2]
[353613308,1739957549452,-552.5,0.00014931,2]
[353613309,1739957549462,-500.0,0.00014931,2]
[353613310,1739957549470,-568.24,0.00014931,2]
[353613311,1739957549479,-794.72,0.00014931,2]
[353613312,1739957549488,-500.0,0.00014931,2]
[353613313,1739957549498,-744.33,0.00014931,2]
[353613314,1739957549507,-374.8084547,0.00014931,2]
[353613315,1739957549516,-500.0,0.00014931,2]
[353613316,1739957549526,-1086.46,0.00014931,2]
[353613317,1739957549535,-852.16,0.00014931,2]
[353613318,1739957549544,-876.52,0.00014931,2]
[353613319,1739957549554,-500.0,0.00014931,2]
[353613320,1739957549563,-694.12,0.00014931,2]
[353613321,1739957549572,-500.0,0.00014931,2]
[353613322,1739957549680,-500.0,0.00014931,2]
[353613323,1739957549689,-720.19,0.00014931,2]
[353613324,1739957549698,-675.84,0.00014931,2]
[353613325,1739957549707,-1284.93,0.00014931,2]
[353613326,1739957549716,-1020.2,0.00014931,2]
[353613327,1739957549726,-514.88984611,0.00014931,2]
[353613328,1739957549735,-640.32,0.00014931,2]
[353613329,1739957549744,-151.0,0.00014931,2]
[353613330,1739957549754,-2649.22,0.00014931,2]
[353613331,1739957549763,-315.69429501,0.00014931,2]
[353613333,1739957549772,-1937.36,0.00014931,2]
[353613334,1739957549781,-500.0,0.00014931,2]
[353613335,1739957549790,-661.65,0.00014931,2]
[353613336,1739957549799,-1923.78,0.00014931,2]
[353613337,1739957549808,-1499.07,0.00014931,2]
[353613338,1739957549817,-687.68,0.00014931,2]
[353613339,1739957549826,-1705.94,0.00014931,2]
[353613340,1739957549835,-500.0,0.00014931,2]
[353613341,1739957549844,-500.0,0.00014931,2]
[353613342,1739957549853,-2171.31,0.00014931,2]
[353613343,1739957549863,-661.61,0.00014931,2]
[353613344,1739957549872,-889.64,0.00014931,2]
[353613345,1739957549881,-500.0,0.00014931,2]
[353613346,1739957549891,-538.22,0.00014931,2]
[353613347,1739957549900,-577.83,0.00014931,2]
[353613348,1739957549910,-571.64,0.00014931,2]
[353613349,1739957549919,-681.91,0.00014931,2]
[353613350,1739957549928,-500.0,0.00014931,2]
[353613351,1739957549938,-1520.67,0.00014931,2]
[353613352,1739957549948,-500.0,0.00014931,2]
[353613353,1739957549956,-500.0,0.00014931,2]
[353613354,1739957549966,-1987.65,0.00014931,2]
[353613355,1739957549976,-576.77,0.00014931,2]
[353613356,1739957549985,-1842.25,0.00014931,2]
[353613357,1739957549995,-506.24,0.00014931,2]
[353613358,1739957550005,-500.0,0.00014931,2]
[353613359,1739957550019,-1152.23,0.00014931,2]
[353613360,1739957550029,-547.06,0.00014931,2]
[353613361,1739957550039,-715.88,0.00014931,2]
[353613362,1739957550048,-1109.67,0.00014931,2]
[353613363,1739957550059,-783.73,0.00014931,2]
[353613364,1739957550068,-4965.72,0.00014931,2]
[353613365,1739957550077,-542.9,0.00014931,2]
[353613366,1739957550087,-1255.58,0.00014931,2]
[353613367,1739957550099,-571.6,0.00014931,2]
[353613368,1739957550109,-595.06,0.00014931,2]
[353613369,1739957550118,-870.4,0.00014931,2]
[353613370,1739957550127,-949.63019,0.00014931,2]
[353613372,1739957550137,-500.0,0.00014931,2]
[353613373,1739957550146,-1312.22,0.00014931,2]
[353613374,1739957550156,-690.92,0.00014931,2]
[353613375,1739957550166,-1038.88,0.00014931,2]
[353613376,1739957550176,-510.11,0.00014931,2]
[353613377,1739957550187,-1128.72,0.00014931,2]
[353613378,1739957550196,-685.38,0.00014931,2]
[353613379,1739957550207,-1630.13,0.00014931,2]
[353613380,1739957550217,-1105.85,0.00014931,2]
[353613381,1739957550227,-500.0,0.00014931,2]
[353613382,1739957550236,-531.86,0.00014931,2]
[353613383,1739957550246,-595.83,0.00014931,2]
[353613384,1739957550256,-735.93,0.00014931,2]
[353613385,1739957550265,-1130.06,0.00014931,2]
[353613386,1739957550275,-743.49,0.00014931,2]
[353613387,1739957550284,-623.46,0.00014931,2]
[353613388,1739957550294,-1482.15,0.00014931,2]
[353613389,1739957550303,-551.14,0.00014931,2]
[353613390,1739957550313,-500.0,0.00014931,2]
[353613391,1739957550324,-1986.52,0.00014931,2]
[353613392,1739957550333,-500.0,0.00014931,2]
[353613393,1739957550343,-596.19,0.00014931,2]
[353613394,1739957550352,-1429.02,0.00014931,2]
[353613395,1739957550362,-515.56,0.00014931,2]
[353613396,1739957550371,-504.01,0.00014931,2]
[353613397,1739957550380,-1375.73,0.00014931,2]
[353613398,1739957550390,-625.37,0.00014931,2]
[353613399,1739957550399,-592.644206,0.00014931,2]
[353613400,1739957550408,-751.56,0.00014931,2]
[353613401,1739957550419,-592.644206,0.00014931,2]
[353613402,1739957550428,-1045.9,0.00014931,2]
[353613403,1739957550437,-500.0,0.00014931,2]
[353613404,1739957550446,-1195.24,0.00014931,2]
[353613405,1739957550456,-783.63,0.00014931,2]
[353613406,1739957550465,-923.97,0.00014931,2]
[353613408,1739957550475,-533.29,0.00014931,2]
[353613409,1739957550484,-383.062879,0.00014931,2]
[353613410,1739957550494,-383.062879,0.00014931,2]
[353613411,1739957550503,-561.8,0.00014931,2]
[353613412,1739957550512,-500.0,0.00014931,2]
[353613413,1739957550522,-556.13,0.00014931,2]
[353613414,1739957550532,-871.44,0.00014931,2]
[353613415,1739957550541,-500.0,0.00014931,2]
[353613416,1739957550551,-520.39,0.00014931,2]
[353613417,1739957550560,-500.0,0.00014931,2]
[353613418,1739957550570,-627.31,0.00014931,2]
[353613419,1739957550580,-1049.1,0.00014931,2]
[353613420,1739957550589,-758.0,0.00014931,2]
[353613421,1739957550599,-758.0,0.00014959,2]
[353613422,1739957550608,-758.0,0.00014986,2]
[353613423,1739957550618,-690.73736799,0.00015,10]
[353613424,1739957550628,-2749.0,0.00015,2]
[353613425,1739957550638,-345.1946927,0.00015003,2]
[353613426,1739957550647,-827.2,0.00015012,2]
[353613427,1739957550657,-774.83,0.00015012,2]
[353613428,1739957550667,-207.42421263,0.00015012,2]
[353613429,1739957550685,-379.79578737,0.00015012,2]
[353613430,1739957550694,-2086.08,0.00015012,2]
[353613431,1739957550704,-504.96752033,0.00015012,2]
[353613432,1739957550713,-585.1038435,0.00015012,2]
[353613433,1739957550732,-896.64,0.00014767,2]
[353613434,1739957550741,-268.4361565,0.00015012,2]
[353613435,1739957550751,-465.30863049,0.00015012,2]
[353613437,1739957793848,1074.65,0.0002,120]
[353613438,1739957794121,1074.65,0.0002,120]
[353613439,1739957794371,1074.65,0.0002,120]
[353613440,1739957794654,1074.65,0.0002,120]
[353613441,1739957794887,1074.65,0.0002,120]
[353613442,1739957795153,1074.65,0.0002,120]
[353613443,1739957795395,1074.65,0.0002,120]
[353613444,1739957795632,1074.65,0.0002,120]
[353613445,1739957795891,1074.65,0.0002,120]
[353613446,1739957796137,1074.65,0.0002,120]
[353613447,1739957796417,1074.65,0.0002,120]
[353613448,1739957796683,1074.65,0.0002,120]
[353613449,1739957796926,1074.65,0.0002,120]
[353613450,1739957797170,1074.65,0.0002,120]
[353613451,1739957797410,1074.65,0.0002,120]
[353613452,1739957797654,1074.65,0.0002,120]
[353613453,1739957798141,1074.65,0.0002,120]
[353613454,1739957798409,1074.65,0.0002,120]
[353613455,1739957798669,1074.65,0.0002,120]
[353613456,1739957798920,1074.65,0.0002,120]
[353613457,1739957799284,1074.65,0.0002,120]
[353613458,1739957799518,1074.65,0.0002,120]
[353613459,1739957799737,1074.65,0.0002,120]
[353613460,1739957800091,1074.67088216,0.0002,120]
[353613464,1739958198772,186.45,8.767e-05,2]
[353613476,1739958408985,500.0,0.0002,120]
[353613477,1739958409186,500.0,0.0002,120]
[353613479,1739958409765,500.0,0.0002,120]
[353613480,1739958410026,500.0,0.0002,120]
[353613481,1739958410266,500.0,0.0002,120]
[353613482,1739958410585,500.0,0.0002,120]
[353613483,1739958410832,500.0,0.0002,120]
[353613484,1739958411076,500.0,0.0002,120]
[353613485,1739958411323,500.0,0.0002,120]
[353613486,1739958411963,500.0,0.0002,120]
[353613487,1739958412418,526.75,0.0002,120]
[353613661,1739958631835,-309.91011896,0.00011348,2]
[353613675,1739958637669,-247.76988104,0.00011348,2]
[353613676,1739958637679,-150.0,0.00012483,2]
[353613677,1739958637688,-762.72,0.00012918,2]
[353613678,1739958637697,-258.03725948,0.00013059,2]
[353613679,1739958637716,-741.96274052,0.00013059,2]
[353613680,1739958637725,-171.08,0.00013185,2]
[353613681,1739958637735,-8.38662551,0.000136,4]
[353613682,1739958637746,-291.61337449,0.000136,4]
[353613683,1739958637755,-557.68,0.00013612,2]
[353613684,1739958637765,-436.6264974,0.00013657,2]
[353613685,1739958637774,-178.9680553,0.0001368,2]
[353613686,1739958637784,-150.0,0.00013697,2]
[353613687,1739958637795,-500.0,0.00013698,2]
[353613688,1739958637805,-500.0,0.00013698,2]
[353613689,1739958637814,-500.0,0.00013698,2]
[353613690,1739958637826,-633.40720111,0.00013698,2]
[353613691,1739958637835,-500.0,0.00013698,2]
[353613692,1739958637844,-500.0,0.00013698,2]
[353613693,1739958637854,-500.0,0.00013698,2]
[353613694,1739958637864,-500.0,0.00013698,2]
[353613695,1739958637873,-500.0,0.00013698,2]
[353613696,1739958637883,-500.0,0.00013698,2]
[353613697,1739958637892,-267.6545417,0.00013698,2]
[353613698,1739958637911,-232.3454583,0.00013698,2]
[353613699,1739958637920,-500.0,0.00013698,2]
[353613700,1739958637930,-306.43275967,0.00013698,2]
[353613701,1739958637939,-500.0,0.00013698,2]
[353613702,1739958637949,-500.0,0.00013698,2]
[353613703,1739958637958,-500.0,0.00013698,2]
[353613704,1739958637967,-500.0,0.00013698,2]
[353613705,1739958637977,-507.02103174,0.00013698,2]
[353613706,1739958637988,-784.43,0.00013698,2]
[353613707,1739958637998,-896.43,0.00013698,2]
[353613708,1739958638008,-500.0,0.00013698,2]
[353613709,1739958638017,-653.58,0.00013698,2]
[353613710,1739958638026,-500.0,0.00013698,2]
[353613711,1739958638035,-500.0,0.00013698,2]
[353613712,1739958638045,-500.0,0.00013698,2]
[353613713,1739958638055,-433.42130636,0.00013698,2]
[353613714,1739958638064,-500.0,0.00013698,2]
[353613715,1739958638073,-500.0,0.00013698,2]